[Event "Titled Tuesday Blitz May 03 Late 2022"]
[White "Sailer, Mike"]
[Black "Petrova, Irina"]
[WhiteFideId "2012901"]
[BlackFideId "14124122"]
[WhiteElo "2109"]
[BlackElo "1993"]
[Result "0-1"]
[Round "04"]
[TimeControl "180+1"]
[Date "2022.05.03"]
[WhiteClock "0:00:01"]
[BlackClock "0:00:21"]

1. d4 {[%clk 0:03:00]}  d5 {[%clk 0:02:59]} 2. Nf3 {[%clk 0:02:56]}  Nf6 {[%clk 0:02:59]} 3. Bf4 {[%clk 0:02:56]}  c5 {[%clk 0:02:58]} 4. e3 {[%clk 0:02:57]}  Nc6 {[%clk 0:02:58]} 5. Nc3 {[%clk 0:02:58]}  a6 {[%clk 0:02:02]} 6. Be2 {[%clk 0:02:56]}  e6 {[%clk 0:01:59]} 7. O-O {[%clk 0:02:55]}  Be7 {[%clk 0:01:57]} 8. h3 {[%clk 0:02:53]}  O-O {[%clk 0:01:55]} 9. Ne5 {[%clk 0:02:49]}  Nxe5 {[%clk 0:01:49]} 10. Bxe5 {[%clk 0:02:48]}  b5 {[%clk 0:01:40]} 11. a3 {[%clk 0:02:44]}  Bb7 {[%clk 0:01:38]} 12. Bf3 {[%clk 0:02:40]}  Rc8 {[%clk 0:01:04]} 13. Ne2 {[%clk 0:02:27]}  Ne4 {[%clk 0:01:01]} 14. Bxe4 {[%clk 0:01:59]}  dxe4 {[%clk 0:01:00]} 15. dxc5 {[%clk 0:01:51]}  Bxc5 {[%clk 0:01:01]} 16. Qxd8 {[%clk 0:01:48]}  Rfxd8 {[%clk 0:01:02]} 17. Rfd1 {[%clk 0:01:48]}  Be7 {[%clk 0:00:53]} 18. c3 {[%clk 0:01:41]}  f6 {[%clk 0:00:51]} 19. Bd4 {[%clk 0:01:36]}  Rd6 {[%clk 0:00:48]} 20. Ba7 {[%clk 0:01:21]}  Rxd1+ {[%clk 0:00:42]} 21. Rxd1 {[%clk 0:01:19]}  Rd8 {[%clk 0:00:43]} 22. Rxd8+ {[%clk 0:01:19]}  Bxd8 {[%clk 0:00:44]} 23. Bc5 {[%clk 0:01:17]}  Bd5 {[%clk 0:00:40]} 24. Nd4 {[%clk 0:01:14]}  e5 {[%clk 0:00:38]} 25. Nc2 {[%clk 0:00:58]}  Kf7 {[%clk 0:00:36]} 26. Kf1 {[%clk 0:00:50]}  Ke6 {[%clk 0:00:36]} 27. Ke1 {[%clk 0:00:47]}  a5 {[%clk 0:00:32]} 28. Kd2 {[%clk 0:00:43]}  Kd7 {[%clk 0:00:31]} 29. Bf8 {[%clk 0:00:42]}  g6 {[%clk 0:00:30]} 30. h4 {[%clk 0:00:34]}  f5 {[%clk 0:00:29]} 31. g3 {[%clk 0:00:33]}  f4 {[%clk 0:00:25]} 32. Bh6 {[%clk 0:00:23]}  fxg3 {[%clk 0:00:24]} 33. fxg3 {[%clk 0:00:22]}  Ke6 {[%clk 0:00:24]} 34. g4 {[%clk 0:00:12]}  Bxh4 {[%clk 0:00:23]} 35. Ke2 {[%clk 0:00:08]}  Bd8 {[%clk 0:00:22]} 36. Kf2 {[%clk 0:00:07]}  Kf7 {[%clk 0:00:22]} 37. Kg3 {[%clk 0:00:06]}  Bf6 {[%clk 0:00:20]} 38. Ne1 {[%clk 0:00:04]}  Be7 {[%clk 0:00:20]} 39. Nc2 {[%clk 0:00:04]}  g5 {[%clk 0:00:20]} 40. Ne1 {[%clk 0:00:01]}  Kg6 {[%clk 0:00:21]} 0-1


[Site "https://www.chess.com"]

[Event "Titled Tuesday Blitz May 03 Late 2022"]
[White "Sanchez Alvares, Kelvin Antonio"]
[Black "Vasquez Schroeder, Rodrigo"]
[WhiteFideId "3906680"]
[BlackFideId "3400042"]
[WhiteElo "2193"]
[BlackElo "2561"]
[Result "0-1"]
[Round "04"]
[TimeControl "180+1"]
[Date "2022.05.03"]
[WhiteClock "0:00:22"]
[BlackClock "0:00:25"]

1. d4 {[%clk 0:03:00]}  Nf6 {[%clk 0:02:57]} 2. c4 {[%clk 0:03:00]}  g6 {[%clk 0:02:57]} 3. Nc3 {[%clk 0:02:59]}  Bg7 {[%clk 0:02:58]} 4. e4 {[%clk 0:02:59]}  d6 {[%clk 0:02:58]} 5. Nf3 {[%clk 0:03:00]}  O-O {[%clk 0:02:57]} 6. Be2 {[%clk 0:03:00]}  e5 {[%clk 0:02:57]} 7. O-O {[%clk 0:03:00]}  Na6 {[%clk 0:02:56]} 8. d5 {[%clk 0:02:59]}  Nc5 {[%clk 0:02:55]} 9. Qc2 {[%clk 0:02:58]}  a5 {[%clk 0:02:55]} 10. Bg5 {[%clk 0:02:57]}  h6 {[%clk 0:02:53]} 11. Be3 {[%clk 0:02:57]}  b6 {[%clk 0:02:44]} 12. Nd2 {[%clk 0:02:53]}  Nfd7 {[%clk 0:02:30]} 13. b3 {[%clk 0:02:45]}  f5 {[%clk 0:02:28]} 14. a3 {[%clk 0:02:44]}  f4 {[%clk 0:02:27]} 15. Bxc5 {[%clk 0:02:43]}  bxc5 {[%clk 0:02:18]} 16. Bg4 {[%clk 0:02:31]}  Nf6 {[%clk 0:02:18]} 17. Bxc8 {[%clk 0:02:30]}  Qxc8 {[%clk 0:02:17]} 18. f3 {[%clk 0:02:29]}  g5 {[%clk 0:02:15]} 19. Nd1 {[%clk 0:02:24]}  h5 {[%clk 0:02:12]} 20. Nf2 {[%clk 0:02:19]}  g4 {[%clk 0:02:12]} 21. b4 {[%clk 0:02:13]}  axb4 {[%clk 0:02:05]} 22. axb4 {[%clk 0:02:12]}  cxb4 {[%clk 0:02:05]} 23. c5 {[%clk 0:02:07]}  Qb7 {[%clk 0:02:03]} 24. cxd6 {[%clk 0:02:05]}  cxd6 {[%clk 0:02:02]} 25. Qc6 {[%clk 0:02:00]}  Qxc6 {[%clk 0:01:45]} 26. dxc6 {[%clk 0:01:59]}  Rfc8 {[%clk 0:01:46]} 27. Rxa8 {[%clk 0:01:57]}  Rxa8 {[%clk 0:01:46]} 28. Nc4 {[%clk 0:01:43]}  Rc8 {[%clk 0:01:46]} 29. Na5 {[%clk 0:01:40]}  Bf8 {[%clk 0:01:38]} 30. Nd3 {[%clk 0:01:35]}  gxf3 {[%clk 0:01:24]} 31. gxf3 {[%clk 0:01:33]}  d5 {[%clk 0:01:19]} 32. exd5 {[%clk 0:01:31]}  Nxd5 {[%clk 0:01:20]} 33. Nxe5 {[%clk 0:01:27]}  Bc5+ {[%clk 0:01:17]} 34. Kh1 {[%clk 0:01:27]}  Bb6 {[%clk 0:01:17]} 35. Nec4 {[%clk 0:01:26]}  Bxa5 {[%clk 0:01:12]} 36. Nxa5 {[%clk 0:01:26]}  Kf7 {[%clk 0:01:13]} 37. Re1 {[%clk 0:01:20]}  Ra8 {[%clk 0:01:06]} 38. Nc4 {[%clk 0:01:16]}  Kf6 {[%clk 0:01:03]} 39. Rd1 {[%clk 0:01:01]}  Ne3 {[%clk 0:00:46]} 40. Rd6+ {[%clk 0:00:52]}  Kf5 {[%clk 0:00:44]} 41. Nxe3+ {[%clk 0:00:47]}  fxe3 {[%clk 0:00:43]} 42. Kg2 {[%clk 0:00:48]}  Ra2+ {[%clk 0:00:42]} 43. Kf1 {[%clk 0:00:47]}  Rc2 {[%clk 0:00:39]} 44. Rd5+ {[%clk 0:00:41]}  Kf4 {[%clk 0:00:38]} 45. Rxh5 {[%clk 0:00:40]}  b3 {[%clk 0:00:35]} 46. c7 {[%clk 0:00:35]}  Rxc7 {[%clk 0:00:33]} 47. Rb5 {[%clk 0:00:35]}  Kxf3 {[%clk 0:00:32]} 48. Rf5+ {[%clk 0:00:31]}  Ke4 {[%clk 0:00:31]} 49. Rb5 {[%clk 0:00:32]}  Rc3 {[%clk 0:00:30]} 50. Ke2 {[%clk 0:00:30]}  Rc2+ {[%clk 0:00:29]} 51. Kd1 {[%clk 0:00:30]}  Rd2+ {[%clk 0:00:26]} 52. Ke1 {[%clk 0:00:27]}  b2 {[%clk 0:00:26]} 53. Rb8 {[%clk 0:00:22]}  Rxh2 {[%clk 0:00:25]} 54. Re8+ {[%clk 0:00:22]}  Kd5 {[%clk 0:00:25]} 0-1


[Site "https://www.chess.com"]

[Event "Titled Tuesday Blitz May 03 Late 2022"]
[White "Sanchez, Robert"]
[Black "Koelle, Tobias"]
[WhiteFideId "2034360"]
[BlackFideId "16207378"]
[WhiteElo "2433"]
[BlackElo "2541"]
[Result "0-1"]
[Round "04"]
[TimeControl "180+1"]
[Date "2022.05.03"]
[WhiteClock "0:00:15"]
[BlackClock "0:02:04"]

1. e4 {[%clk 0:03:00]}  b6 {[%clk 0:02:58]} 2. Nf3 {[%clk 0:02:58]}  Bb7 {[%clk 0:02:59]} 3. Bc4 {[%clk 0:02:58]}  e6 {[%clk 0:02:58]} 4. Nc3 {[%clk 0:02:56]}  Bb4 {[%clk 0:02:54]} 5. Qe2 {[%clk 0:02:37]}  Ne7 {[%clk 0:02:53]} 6. O-O {[%clk 0:02:37]}  O-O {[%clk 0:02:51]} 7. d4 {[%clk 0:02:33]}  d5 {[%clk 0:02:51]} 8. exd5 {[%clk 0:02:31]}  exd5 {[%clk 0:02:50]} 9. Bd3 {[%clk 0:02:31]}  Ng6 {[%clk 0:02:49]} 10. Ng5 {[%clk 0:02:27]}  Nd7 {[%clk 0:02:47]} 11. Qf3 {[%clk 0:02:12]}  Qf6 {[%clk 0:02:44]} 12. Qh3 {[%clk 0:02:09]}  h6 {[%clk 0:02:41]} 13. Qxd7 {[%clk 0:02:01]}  Bxc3 {[%clk 0:02:30]} 14. bxc3 {[%clk 0:01:54]}  hxg5 {[%clk 0:02:29]} 15. Qxc7 {[%clk 0:01:53]}  Bc8 {[%clk 0:02:30]} 16. Bxg6 {[%clk 0:01:29]}  Qxg6 {[%clk 0:02:31]} 17. Ba3 {[%clk 0:01:24]}  Re8 {[%clk 0:02:30]} 18. Rfe1 {[%clk 0:01:15]}  Be6 {[%clk 0:02:29]} 19. Qg3 {[%clk 0:01:10]}  Rac8 {[%clk 0:02:26]} 20. Re2 {[%clk 0:01:06]}  Rc6 {[%clk 0:02:24]} 21. Rae1 {[%clk 0:01:04]}  Rec8 {[%clk 0:02:24]} 22. Re3 {[%clk 0:00:50]}  Qxc2 {[%clk 0:02:21]} 23. Qxg5 {[%clk 0:00:50]}  Rxc3 {[%clk 0:02:20]} 24. Bd6 {[%clk 0:00:42]}  Rxe3 {[%clk 0:02:19]} 25. Qxe3 {[%clk 0:00:34]}  Qxa2 {[%clk 0:02:19]} 26. Be5 {[%clk 0:00:34]}  Qc2 {[%clk 0:02:18]} 27. h4 {[%clk 0:00:32]}  Qg6 {[%clk 0:02:16]} 28. Qf4 {[%clk 0:00:28]}  Qg4 {[%clk 0:02:15]} 29. Qxg4 {[%clk 0:00:22]}  Bxg4 {[%clk 0:02:16]} 30. Re3 {[%clk 0:00:23]}  Be6 {[%clk 0:02:14]} 31. Rg3 {[%clk 0:00:22]}  g6 {[%clk 0:02:06]} 32. h5 {[%clk 0:00:23]}  Bf5 {[%clk 0:02:07]} 33. h6 {[%clk 0:00:20]}  Kh7 {[%clk 0:02:06]} 34. Rg5 {[%clk 0:00:17]}  Kxh6 {[%clk 0:02:06]} 35. Bf6 {[%clk 0:00:18]}  Rc6 {[%clk 0:02:04]} 36. Be7 {[%clk 0:00:15]}  Re6 {[%clk 0:02:04]} 0-1


[Site "https://www.chess.com"]

[Event "Titled Tuesday Blitz May 03 Late 2022"]
[White "Sarana, Alexey"]
[Black "Fernandez, Daniel Howard"]
[WhiteFideId "24133795"]
[BlackFideId "5801605"]
[WhiteElo "2666"]
[BlackElo "2466"]
[Result "1-0"]
[Round "04"]
[TimeControl "180+1"]
[Date "2022.05.03"]
[WhiteClock "0:00:26"]
[BlackClock "0:00:13"]

1. d4 {[%clk 0:03:00]}  Nf6 {[%clk 0:02:59]} 2. c4 {[%clk 0:03:01]}  e6 {[%clk 0:02:59]} 3. Nc3 {[%clk 0:03:02]}  Bb4 {[%clk 0:02:58]} 4. e3 {[%clk 0:03:02]}  O-O {[%clk 0:02:57]} 5. Bd3 {[%clk 0:03:03]}  d5 {[%clk 0:02:51]} 6. a3 {[%clk 0:03:02]}  Bxc3+ {[%clk 0:02:37]} 7. bxc3 {[%clk 0:03:03]}  dxc4 {[%clk 0:02:38]} 8. Bxc4 {[%clk 0:03:04]}  b6 {[%clk 0:02:38]} 9. Ne2 {[%clk 0:03:03]}  Bb7 {[%clk 0:02:39]} 10. f3 {[%clk 0:02:59]}  Nbd7 {[%clk 0:02:36]} 11. e4 {[%clk 0:02:59]}  c5 {[%clk 0:02:35]} 12. O-O {[%clk 0:02:59]}  Qc7 {[%clk 0:02:35]} 13. Bd3 {[%clk 0:02:37]}  Rac8 {[%clk 0:02:34]} 14. Bg5 {[%clk 0:02:35]}  h6 {[%clk 0:02:33]} 15. Bh4 {[%clk 0:02:35]}  Rcd8 {[%clk 0:02:12]} 16. Qd2 {[%clk 0:02:21]}  Rde8 {[%clk 0:02:09]} 17. a4 {[%clk 0:02:15]}  Qc8 {[%clk 0:02:09]} 18. a5 {[%clk 0:02:13]}  c4 {[%clk 0:02:03]} 19. Bc2 {[%clk 0:02:11]}  b5 {[%clk 0:02:03]} 20. Bg3 {[%clk 0:02:03]}  e5 {[%clk 0:02:00]} 21. dxe5 {[%clk 0:01:56]}  Nxe5 {[%clk 0:02:00]} 22. Qd4 {[%clk 0:01:54]}  Nc6 {[%clk 0:02:00]} 23. Qc5 {[%clk 0:01:52]}  a6 {[%clk 0:02:01]} 24. Rfd1 {[%clk 0:01:51]}  Rd8 {[%clk 0:01:58]} 25. Nd4 {[%clk 0:01:44]}  Nxd4 {[%clk 0:01:44]} 26. cxd4 {[%clk 0:01:43]}  Qxc5 {[%clk 0:01:31]} 27. dxc5 {[%clk 0:01:44]}  Bc6 {[%clk 0:01:32]} 28. Be1 {[%clk 0:01:38]}  Nd7 {[%clk 0:01:26]} 29. Bb4 {[%clk 0:01:37]}  Ne5 {[%clk 0:01:27]} 30. Rd6 {[%clk 0:01:36]}  Rxd6 {[%clk 0:01:17]} 31. cxd6 {[%clk 0:01:37]}  Bd7 {[%clk 0:01:18]} 32. Kf2 {[%clk 0:01:10]}  Nc6 {[%clk 0:01:18]} 33. Bc5 {[%clk 0:01:10]}  b4 {[%clk 0:01:18]} 34. Ke3 {[%clk 0:01:10]}  b3 {[%clk 0:01:10]} 35. Bd1 {[%clk 0:01:09]}  Rc8 {[%clk 0:01:11]} 36. Bb6 {[%clk 0:00:48]}  Ne5 {[%clk 0:01:10]} 37. Kd4 {[%clk 0:00:44]}  Nd3 {[%clk 0:00:55]} 38. Bc7 {[%clk 0:00:36]}  Bb5 {[%clk 0:00:53]} 39. g3 {[%clk 0:00:31]}  f6 {[%clk 0:00:33]} 40. f4 {[%clk 0:00:31]}  Kf7 {[%clk 0:00:19]} 41. e5 {[%clk 0:00:31]}  f5 {[%clk 0:00:18]} 42. Bf3 {[%clk 0:00:29]}  b2 {[%clk 0:00:12]} 43. Rb1 {[%clk 0:00:29]}  Ba4 {[%clk 0:00:13]} 44. Bd5+ {[%clk 0:00:27]}  Ke8 {[%clk 0:00:13]} 45. Bxc4 {[%clk 0:00:26]} 1-0


[Site "https://www.chess.com"]

[Event "Titled Tuesday Blitz May 03 Late 2022"]
[White "Sargsyan, Anna M."]
[Black "Melaugh, Shane"]
[WhiteFideId "13308130"]
[BlackFideId "2509580"]
[WhiteElo "2271"]
[BlackElo "1972"]
[Result "1-0"]
[Round "04"]
[TimeControl "180+1"]
[Date "2022.05.03"]
[WhiteClock "0:00:11"]
[BlackClock "0:00:02"]

1. d4 {[%clk 0:03:00]}  e6 {[%clk 0:03:00]} 2. c4 {[%clk 0:03:01]}  f5 {[%clk 0:03:00]} 3. Nc3 {[%clk 0:02:58]}  Nf6 {[%clk 0:03:00]} 4. Qc2 {[%clk 0:02:58]}  Bb4 {[%clk 0:02:55]} 5. a3 {[%clk 0:02:54]}  Bxc3+ {[%clk 0:02:54]} 6. Qxc3 {[%clk 0:02:55]}  O-O {[%clk 0:02:54]} 7. Nf3 {[%clk 0:02:55]}  b6 {[%clk 0:02:50]} 8. Bf4 {[%clk 0:02:53]}  Bb7 {[%clk 0:02:51]} 9. e3 {[%clk 0:02:53]}  d6 {[%clk 0:02:38]} 10. Be2 {[%clk 0:02:52]}  h6 {[%clk 0:02:31]} 11. h3 {[%clk 0:02:52]}  Qe7 {[%clk 0:02:26]} 12. Qc2 {[%clk 0:02:47]}  Nbd7 {[%clk 0:02:25]} 13. Bh2 {[%clk 0:02:45]}  Be4 {[%clk 0:02:23]} 14. Qc3 {[%clk 0:02:39]}  Rae8 {[%clk 0:02:19]} 15. O-O {[%clk 0:02:36]}  e5 {[%clk 0:02:17]} 16. dxe5 {[%clk 0:02:35]}  dxe5 {[%clk 0:02:14]} 17. b4 {[%clk 0:02:33]}  c5 {[%clk 0:02:03]} 18. Rfd1 {[%clk 0:02:31]}  Bc6 {[%clk 0:01:52]} 19. bxc5 {[%clk 0:02:20]}  Qxc5 {[%clk 0:01:49]} 20. Nd2 {[%clk 0:02:20]}  Qe7 {[%clk 0:01:21]} 21. a4 {[%clk 0:02:17]}  Nc5 {[%clk 0:01:20]} 22. a5 {[%clk 0:02:16]}  Nfe4 {[%clk 0:01:15]} 23. Nxe4 {[%clk 0:02:16]}  Nxe4 {[%clk 0:01:16]} 24. Qb2 {[%clk 0:02:12]}  Qc5 {[%clk 0:01:13]} 25. axb6 {[%clk 0:01:51]}  axb6 {[%clk 0:01:12]} 26. Rab1 {[%clk 0:01:36]}  f4 {[%clk 0:00:53]} 27. Qxb6 {[%clk 0:01:36]}  fxe3 {[%clk 0:00:52]} 28. fxe3 {[%clk 0:01:22]}  Qa3 {[%clk 0:00:25]} 29. Ra1 {[%clk 0:00:31]}  Qc3 {[%clk 0:00:20]} 30. Bd3 {[%clk 0:00:25]}  Nf2 {[%clk 0:00:10]} 31. Qxc6 {[%clk 0:00:23]}  Nxd3 {[%clk 0:00:09]} 32. Qd5+ {[%clk 0:00:23]}  Kh8 {[%clk 0:00:08]} 33. Qxd3 {[%clk 0:00:23]}  Qb2 {[%clk 0:00:09]} 34. Kh1 {[%clk 0:00:19]}  Rf2 {[%clk 0:00:08]} 35. Qe4 {[%clk 0:00:17]}  Ref8 {[%clk 0:00:04]} 36. Ra8 {[%clk 0:00:16]}  Qe2 {[%clk 0:00:02]} 37. Rxf8+ {[%clk 0:00:14]}  Rxf8 {[%clk 0:00:03]} 38. Ra1 {[%clk 0:00:12]}  Rf2 {[%clk 0:00:02]} 39. Ra8+ {[%clk 0:00:11]} 1-0


[Site "https://www.chess.com"]

[Event "Titled Tuesday Blitz May 03 Late 2022"]
[White "Senthilkumar, Pranav"]
[Black "Burke, Paul"]
[WhiteFideId "2083477"]
[BlackFideId "2605767"]
[WhiteElo "2441"]
[BlackElo "1849"]
[Result "1-0"]
[Round "04"]
[TimeControl "180+1"]
[Date "2022.05.03"]
[WhiteClock "0:02:07"]
[BlackClock "0:00:43"]

1. Nf3 {[%clk 0:03:00]}  a6 {[%clk 0:02:57]} 2. g3 {[%clk 0:02:55]}  d6 {[%clk 0:02:57]} 3. Bg2 {[%clk 0:02:56]}  g6 {[%clk 0:02:58]} 4. O-O {[%clk 0:02:57]}  Nd7 {[%clk 0:02:58]} 5. d4 {[%clk 0:02:57]}  Bg7 {[%clk 0:02:58]} 6. c4 {[%clk 0:02:56]}  h6 {[%clk 0:02:58]} 7. Nc3 {[%clk 0:02:56]}  e6 {[%clk 0:02:58]} 8. d5 {[%clk 0:02:56]}  e5 {[%clk 0:02:55]} 9. e4 {[%clk 0:02:56]}  Ne7 {[%clk 0:02:55]} 10. Ne1 {[%clk 0:02:56]}  O-O {[%clk 0:02:45]} 11. Nd3 {[%clk 0:02:56]}  f5 {[%clk 0:02:41]} 12. Be3 {[%clk 0:02:55]}  fxe4 {[%clk 0:02:36]} 13. Nxe4 {[%clk 0:02:54]}  Nf5 {[%clk 0:02:35]} 14. Bd2 {[%clk 0:02:54]}  Nf6 {[%clk 0:02:34]} 15. c5 {[%clk 0:02:52]}  Nxe4 {[%clk 0:02:32]} 16. Bxe4 {[%clk 0:02:52]}  Nd4 {[%clk 0:02:11]} 17. Be3 {[%clk 0:02:47]}  Bh3 {[%clk 0:02:09]} 18. Re1 {[%clk 0:02:45]}  Nf5 {[%clk 0:02:03]} 19. cxd6 {[%clk 0:02:42]}  cxd6 {[%clk 0:02:02]} 20. Qb3 {[%clk 0:02:41]}  Nxe3 {[%clk 0:02:00]} 21. Rxe3 {[%clk 0:02:38]}  b5 {[%clk 0:01:53]} 22. Bxg6 {[%clk 0:02:35]}  Qf6 {[%clk 0:01:42]} 23. Be4 {[%clk 0:02:32]}  Rac8 {[%clk 0:01:30]} 24. Rae1 {[%clk 0:02:24]}  Rc4 {[%clk 0:01:26]} 25. Qd1 {[%clk 0:02:16]}  Rfc8 {[%clk 0:01:14]} 26. Qh5 {[%clk 0:02:15]}  Bd7 {[%clk 0:00:49]} 27. b3 {[%clk 0:02:12]}  Rc2 {[%clk 0:00:43]} 28. Rf3 {[%clk 0:02:07]} 1-0


[Site "https://www.chess.com"]

[Event "Titled Tuesday Blitz May 03 Late 2022"]
[White "Skliarov, Viktor"]
[Black "Perez Rodriguez, Jennifer"]
[WhiteFideId "14106736"]
[BlackFideId "3507831"]
[WhiteElo "2229"]
[BlackElo "2170"]
[Result "1-0"]
[Round "04"]
[TimeControl "180+1"]
[Date "2022.05.03"]
[WhiteClock "0:00:36"]
[BlackClock "0:00:43"]

1. e4 {[%clk 0:03:00]}  e5 {[%clk 0:02:59]} 2. Nc3 {[%clk 0:03:00]}  Nc6 {[%clk 0:02:58]} 3. Bc4 {[%clk 0:02:58]}  Nf6 {[%clk 0:02:57]} 4. d3 {[%clk 0:02:58]}  Na5 {[%clk 0:02:54]} 5. Nge2 {[%clk 0:02:57]}  Nxc4 {[%clk 0:02:54]} 6. dxc4 {[%clk 0:02:57]}  Bb4 {[%clk 0:02:53]} 7. O-O {[%clk 0:02:52]}  Bxc3 {[%clk 0:02:53]} 8. Nxc3 {[%clk 0:02:52]}  d6 {[%clk 0:02:53]} 9. Bg5 {[%clk 0:02:19]}  h6 {[%clk 0:02:53]} 10. Bh4 {[%clk 0:02:19]}  g5 {[%clk 0:02:52]} 11. Bg3 {[%clk 0:02:20]}  Be6 {[%clk 0:02:52]} 12. c5 {[%clk 0:02:13]}  Qd7 {[%clk 0:02:40]} 13. cxd6 {[%clk 0:02:02]}  cxd6 {[%clk 0:02:40]} 14. Qd3 {[%clk 0:01:51]}  O-O {[%clk 0:02:19]} 15. Rad1 {[%clk 0:01:48]}  Rfd8 {[%clk 0:02:16]} 16. h4 {[%clk 0:01:38]}  Rac8 {[%clk 0:02:14]} 17. hxg5 {[%clk 0:01:29]}  hxg5 {[%clk 0:02:11]} 18. Qe3 {[%clk 0:01:28]}  Nh7 {[%clk 0:01:37]} 19. Bxe5 {[%clk 0:01:27]}  Qe7 {[%clk 0:01:35]} 20. Bd4 {[%clk 0:01:24]}  f6 {[%clk 0:01:29]} 21. Bxa7 {[%clk 0:01:19]}  Nf8 {[%clk 0:01:13]} 22. Bb6 {[%clk 0:01:11]}  Rd7 {[%clk 0:01:13]} 23. f4 {[%clk 0:01:06]}  Bg4 {[%clk 0:01:03]} 24. Rd2 {[%clk 0:00:57]}  Ng6 {[%clk 0:01:02]} 25. Nd5 {[%clk 0:00:51]}  Qe6 {[%clk 0:00:50]} 26. fxg5 {[%clk 0:00:48]}  Rf7 {[%clk 0:00:43]} 27. Nxf6+ {[%clk 0:00:36]} 1-0


[Site "https://www.chess.com"]

[Event "Titled Tuesday Blitz May 03 Late 2022"]
[White "Sliwicki, Damian"]
[Black "Licznerski, Lukasz"]
[WhiteFideId "1127128"]
[BlackFideId "1179250"]
[WhiteElo "2084"]
[BlackElo "2422"]
[Result "0-1"]
[Round "04"]
[TimeControl "180+1"]
[Date "2022.05.03"]
[WhiteClock "0:00:02"]
[BlackClock "0:01:16"]

1. e4 {[%clk 0:02:59]}  c6 {[%clk 0:03:00]} 2. Nf3 {[%clk 0:02:54]}  d5 {[%clk 0:03:01]} 3. Nc3 {[%clk 0:02:54]}  Bg4 {[%clk 0:03:00]} 4. h3 {[%clk 0:02:54]}  Bh5 {[%clk 0:03:00]} 5. exd5 {[%clk 0:02:51]}  cxd5 {[%clk 0:03:01]} 6. g4 {[%clk 0:02:50]}  Bg6 {[%clk 0:03:01]} 7. d4 {[%clk 0:02:51]}  Nc6 {[%clk 0:03:01]} 8. Bb5 {[%clk 0:02:50]}  e6 {[%clk 0:03:02]} 9. Ne5 {[%clk 0:02:49]}  Rc8 {[%clk 0:02:59]} 10. f4 {[%clk 0:02:49]}  Bb4 {[%clk 0:02:56]} 11. Be3 {[%clk 0:02:30]}  Nf6 {[%clk 0:02:44]} 12. Qe2 {[%clk 0:02:03]}  Ne4 {[%clk 0:02:39]} 13. O-O {[%clk 0:01:53]}  Ng3 {[%clk 0:02:28]} 14. Qf2 {[%clk 0:01:54]}  Nxf1 {[%clk 0:02:28]} 15. Rxf1 {[%clk 0:01:54]}  Bxc3 {[%clk 0:02:25]} 16. bxc3 {[%clk 0:01:55]}  Be4 {[%clk 0:02:24]} 17. f5 {[%clk 0:01:42]}  exf5 {[%clk 0:02:18]} 18. gxf5 {[%clk 0:01:33]}  O-O {[%clk 0:02:18]} 19. Bxc6 {[%clk 0:01:33]}  bxc6 {[%clk 0:02:18]} 20. f6 {[%clk 0:01:27]}  gxf6 {[%clk 0:01:28]} 21. Ng4 {[%clk 0:00:23]}  f5 {[%clk 0:01:27]} 22. Nh6+ {[%clk 0:00:08]}  Kh8 {[%clk 0:01:27]} 23. Qg3 {[%clk 0:00:07]}  Qe7 {[%clk 0:01:19]} 24. Kh2 {[%clk 0:00:02]}  Rg8 {[%clk 0:01:16]} 25. Nxg8 {[%clk 0:00:02]}  Rxg8 {[%clk 0:01:16]} 0-1


[Site "https://www.chess.com"]

[Event "Titled Tuesday Blitz May 03 Late 2022"]
[White "Sokolovsky, Yahli"]
[Black "Roux, Baptiste"]
[WhiteFideId "2820242"]
[BlackFideId "36017450"]
[WhiteElo "1770"]
[BlackElo "1935"]
[Result "1-0"]
[Round "04"]
[TimeControl "180+1"]
[Date "2022.05.03"]
[WhiteClock "0:00:41"]
[BlackClock "0:01:58"]

1. b3 {[%clk 0:03:00]}  d5 {[%clk 0:02:55]} 2. Bb2 {[%clk 0:03:00]}  Nf6 {[%clk 0:02:56]} 3. e3 {[%clk 0:03:01]}  e6 {[%clk 0:02:54]} 4. Nf3 {[%clk 0:03:01]}  Be7 {[%clk 0:02:54]} 5. d4 {[%clk 0:03:02]}  O-O {[%clk 0:02:51]} 6. Bd3 {[%clk 0:03:02]}  Nbd7 {[%clk 0:02:49]} 7. Nbd2 {[%clk 0:03:02]}  c5 {[%clk 0:02:46]} 8. O-O {[%clk 0:03:02]}  b6 {[%clk 0:02:46]} 9. Ne5 {[%clk 0:03:01]}  Bb7 {[%clk 0:02:44]} 10. f4 {[%clk 0:02:56]}  Ne8 {[%clk 0:02:40]} 11. Rf3 {[%clk 0:02:51]}  f6 {[%clk 0:02:36]} 12. Bxh7+ {[%clk 0:01:49]}  Kxh7 {[%clk 0:02:36]} 13. Rh3+ {[%clk 0:01:50]}  Kg8 {[%clk 0:02:35]} 14. Ng6 {[%clk 0:01:51]}  f5 {[%clk 0:02:24]} 15. Nf3 {[%clk 0:00:51]}  Nef6 {[%clk 0:02:15]} 16. Ng5 {[%clk 0:00:47]}  Nh5 {[%clk 0:02:01]} 17. Nxe7+ {[%clk 0:00:40]}  Qxe7 {[%clk 0:01:58]} 18. Qxh5 {[%clk 0:00:41]} 1-0


[Site "https://www.chess.com"]